Workbook

Sheet Rozpis příjmů 2019
A1: PŘÍJMY A FINANCOVÁNÍ (v tis. Kč) - rozpis plnění k 31.12.2019
A3: POL | B3: ODPA | C3: Popis | D3: Rozpočet 2019 | E3: Příjmy po změně 2019 | F3: Skutečnost k 31.12.2019 | G3: %plnění
A4: 1111 | B4: ---- | C4: Daň z příjmů FO ze závislé činnosti | D4: 44200 | E4: 44200 | F4: 44239.2 | G4: =F4/E4*100 -> 100.0886878
A5: 1112 | B5: ---- | C5: Daň z příjmů FO ze samostatně výdělečné činnosti | D5: 800 | E5: 800 | F5: 1262.7 | G5: =F5/E5*100 -> 157.8375
A6: 1113 | B6: ---- | C6: Daň z příjmů FO z kapitálových výnosů | D6: 3100 | E6: 3100 | F6: 3763.2 | G6: 121.3935484
A7: 1121 | B7: ---- | C7: Daň z příjmů právnických osob | D7: 33000 | E7: 33000 | F7: 35047.9 | G7: 106.2057576
A8: 1122 | B8: ---- | C8: Daň z příjmů PO za obec | D8: 13600 | E8: 13600 | F8: 13596.6 | G8: 99.975
A9: 11 | C9: Daně z příjmů, zisku a kapitálových výnosů | D9: 94700 | E9: =SUM(E4:E8) -> 94700 | F9: =SUM(F4:F8) -> 97909.6 | G9: 103.3892291
A10: 1211 | B10: ---- | C10: Daň z přidané hodnoty | D10: 79000 | E10: 79000 | F10: 78888.6 | G10: 99.85898734
A11: 12 | C11: Daně ze zboží a služeb v tuzemsku | D11: 79000 | E11: =SUM(E10) -> 79000 | F11: =F10 -> 78888.6 | G11: 99.85898734
A12: 1334 | B12: ---- | C12: Odvody za odnětí půdy ze zemědělského půdního fondu | D12: 5 | E12: 5 | F12: 0 | G12: 0
A13: 1335 | B13: ---- | C13: Poplatky-odnětí pozemků plnění funkcí lesa | D13: 10 | E13: 10 | F13: 48.6 | G13: 486
A14: 1340 | B14: ---- | C14: Poplatek za komunální odpad | D14: 8000 | E14: 8000 | F14: 8341.6 | G14: 104.27
A15: 1341 | B15: ---- | C15: Poplatek ze psů | D15: 255 | E15: 255 | F15: 247.7 | G15: 97.1372549
A16: 1343 | B16: ---- | C16: Poplatek za užívání veřejného prostranství | D16: 200 | E16: 200 | F16: 308.5 | G16: 154.25
A17: 1353 | B17: ---- | C17: Příjmy za zkoušky-odborná způsobilost(řidičská oprávnění) | D17: 350 | E17: 350 | F17: 311.7 | G17: 89.05714286
A18: 1361 | B18: ---- | C18: Správní poplatky | D18: 5500 | E18: 5500 | F18: 5020.2 | G18: 91.27636364
A19: 1381 | B19: ---- | C19: Daň z hazardních her | D19: 1200 | E19: 1200 | F19: 933.5 | G19: 77.79166667
A20: 1382/1383 | B20: ---- | C20: Zrušený odvod z VHP a loterií | D20: 0 | E20: 10 | F20: =9.5+4.7 -> 14.2 | G20: 142
A21: 1385 | B21: ---- | C21: Daň z technických her | D21: 8800 | E21: 8800 | F21: 10143.3 | G21: 115.2647727
A22: 13 | C22: Daně a poplatky z vybraných činností a služeb | D22: 24320 | E22: =SUM(E12:E21) -> 24330 | F22: =SUM(F12:F21) -> 25369.3 | G22: 104.2716811
A23: 1511 | B23: ---- | C23: Daň z nemovitých věcí | D23: 9900 | E23: 9900 | F23: 9970.2 | G23: 100.7090909
A24: 15 | C24: Majetkové daně | D24: 9900 | E24: =SUM(E23) -> 9900 | F24: =F23 -> 9970.2 | G24: 100.7090909
A25: 1 | C25: Daňové příjmy | D25: 207920 | E25: =SUM(E24,E22,E11,E9) -> 207930 | F25: =SUM(F24,F22,F11,F9) -> 212137.7 | G25: 102.0236137
A26: 2111 | B26: 1039 | C26: Lesní hospodářství-prodej dřeva | D26: 15 | E26: 53 | F26: 0.2 | G26: 0.3773584906
A27: 2111 | B27: 2310 | C27: Vodní hospodářství -vodné,stočné | D27: 55195 | E27: 55195 | F27: 56433.5 | G27: 102.2438627
A28: 2111 | B28: 3612 | C28: Bytové hospodářství-zálohy služeb | D28: 6500 | E28: 6500 | F28: 6538 | G28: 100.5846154
A29: 2111 | B29: 3613 | C29: Nebytové hospodářství | D29: 0 | E29: 0 | F29: 7.5 | G29: 0
A30: 2111 | B30: 3722 | C30: Sběr a svoz komunálních odpadů | D30: 25 | E30: 25 | F30: 27.1 | G30: 108.4
A31: 2111 | B31: 3725 | C31: Využívání a zneškodňování odpadů | D31: 4 | E31: 4 | F31: 5.8 | G31: 145
A32: 2111 | B32: 3900 | C32: Poplatky za WC | D32: 10 | E32: 10 | F32: 6.7 | G32: 67
A33: 2111 | B33: 6171 | C33: Činnost místní správy-kopírování,inzerce | D33: 30 | E33: 30 | F33: 29.9 | G33: 99.66666667
A34: 2112 | B34: 6171 | C34: Činnost místní správy-prodej knih a publikací | D34: 25 | E34: 25 | F34: 3.1 | G34: 12.4
A35: 2119 | B35: 6171 | C35: Ostatní příjmy z vlastní činnosti-věcná břemena | D35: 190 | E35: 190 | F35: 118.9 | G35: 62.57894737
A36: 2122 | B36: 3111 | C36: Odvody příspěvkových organizací-MŠ (odpisy-FIPO) | D36: 455 | E36: 455 | F36: 458.6 | G36: 100.7912088
A37: 2122 | B37: 3113 | C37: Odvody příspěvkových organizací-ZŠ (odpisy-FIPO) | D37: 1850 | E37: 1850 | F37: 1906.4 | G37: 103.0486486
A38: 2122 | B38: 3231 | C38: Odvody příspěvkových organizací-ZUŠ (odpisy-FIPO) | D38: 77 | E38: 77 | F38: 78.3 | G38: 101.6883117
A39: 2122 | B39: 3233 | C39: Odvody příspěvkových organizací-SVČ (odpisy-FIPO) | D39: 156 | E39: 156 | F39: 165.1 | G39: 105.8333333
A40: 2122 | B40: 3319 | C40: Odvody příspěvkových organizací-MěKIS(odpisy-FIPO) | D40: 222 | E40: 222 | F40: 286.1 | G40: 128.8738739
A41: 2131 | B41: 1039 | C41: Nájemné-lesní pozemky | D41: 750 | E41: 750 | F41: 750 | G41: 100
A42: 2131 | B42: 3639 | C42: Nájemné-ostatní pozemky | D42: 550 | E42: 550 | F42: =644.4+8.5 -> 652.9 | G42: 118.7090909
A43: 2132 | B43: 2310 | C43: Nájemné-vodní hospodářství | D43: 0.1 | E43: 0.1 | F43: 0.1 | G43: 100
A44: 2132 | B44: 3612 | C44: Nájemné-bytové hospodářství | D44: 11600 | E44: 11600 | F44: 12033.2 | G44: 103.7344828
A45: 2132 | B45: 3613 | C45: Nájemné-nebytové hospodářství | D45: 6200 | E45: 6200 | F45: 7634.6 | G45: 123.1387097
A46: 2132 | B46: 3639 | C46: Nájemné-ostatní pronájmy nemovitostí | D46: 6.1 | E46: 6.1 | F46: 6.1 | G46: 100
A47: 2133 | B47: 3639 | C47: Příjmy z pronájmu movitých věcí | D47: 175 | E47: 175 | F47: 174.1 | G47: 99.48571429
A48: 2139 | B48: 3632 | C48: Nájemné-hrobová místa | D48: 300 | E48: 300 | F48: 228.3 | G48: 76.1
A49: 2139 | B49: 3639 | C49: Ostatní pronájmy majetku | D49: 115 | E49: 115 | F49: 108.3 | G49: 94.17391304
A50: 2141 | B50: 3611 | C50: Příjmy z úroků půjček FRB | D50: 41.4 | E50: 41.4 | F50: 41.4 | G50: 100
A51: 2141 | B51: 6310 | C51: Příjmy z úroků bankovních účtů | D51: 12 | E51: 12 | F51: 137.9 | G51: 1149.166667
A52: 2142 | B52: 6399 | C52: Ostatní finanční operace | D52: 0 | E52: 327 | F52: 377.1 | G52: 115.3211009
A53: 2143 | B53: 2299 | C53: Ost.zálež.v dopravě | D53: 0 | E53: 0 | F53: 4.5 | G53: 0
A54: 21 | C54: Příjmy z vlastní činnosti a odvody přebytků organizací s přímým vztahem | D54: 84503.6 | E54: =SUM(E26:E53) -> 84868.6 | F54: =SUM(F26:F53) -> 88213.7 | G54: 103.9415049
A55: 2212 | B55: 2169 | C55: Sankční platby-stavební | D55: 20 | E55: 20 | F55: 7 | G55: 35
A56: 2212 | B56: 2299 | C56: Sankční platby-doprava | D56: 10000 | E56: 1000 | F56: 1714.4 | G56: 171.44
A57: 2212 | B57: 3612 | C57: Sankční platby-bytové | D57: 120 | E57: 120 | F57: 163.7 | G57: 136.4166667
A58: 2212 | B58: 3769 | C58: Sankční platby-životní prostředí | D58: 50 | E58: 50 | F58: 84.1 | G58: 168.2
A59: 2212 | B59: 5311 | C59: Sankční platby-veřejný pořádek | D59: 150 | E59: 150 | F59: 132.5 | G59: 88.33333333
A60: 2229 | B60: 6402 | C60: Finanční vypořádání min.let | D60: 0 | E60: 268.4 | F60: 268.4 | G60: 100
A61: 22 | C61: Přijaté sankční platby a vratky transferů | D61: 10340 | E61: =SUM(E55:E60) -> 1608.4 | F61: =SUM(F55:F60) -> 2370.1 | G61: 147.3576225
A62: 2310 | B62: 6171 | C62: Prodej krátkodobého a drobného majetku | D62: 10 | E62: 10 | F62: 0 | G62: 0
A63: 2322 | B63: 6171 | C63: Přijaté pojistné náhrady | D63: 200 | E63: 295 | F63: 522.4 | G63: 177.0847458
A64: 2324 | B64: 1039 | C64: Sankční platby - lesnictví | D64: 0 | E64: 0 | F64: 50.5 | G64: 0
A65: 2324 | B65: 2169 | C65: Sankční platby-stavební(náklady řízení) | D65: 5 | E65: 5 | F65: 2 | G65: 40
A66: 2324 | B66: 2299 | C66: Sankční platby-doprava(náklady řízení) | D66: 20 | E66: 20 | F66: 18.3 | G66: 91.5
A67: 2324 | B67: 3632 | C67: Přijaté náhrady za cizí zesnulé | D67: 30 | E67: 30 | F67: 35.2 | G67: 117.3333333
A68: 2324 | B68: 3639 | C68: Přijaté nekapit.náhrady (za el.rozvaděče) | D68: 75 | E68: 75 | F68: 92.4 | G68: 123.2
A69: 2324 | B69: 3769 | C69: Sankční platby-životní prostředí (náklady řízení) | D69: 5 | E69: 5 | F69: 0 | G69: =F69/E69*100 -> 0
A70: 2324 | B70: 5311 | C70: Sankční platby-veřejný pořádek (náklady řízení) | D70: 15 | E70: 15 | F70: 27.4 | G70: 182.6666667
A71: 2324 | B71: 5512 | C71: Přijaté nekapit.náhrady (za zásahy SDH) | D71: 0 | E71: 78.4 | F71: 78.4 | G71: 100
A72: 2324 | B72: 6171 | C72: Přijaté nekapit.příspěvky a náhrady-ost. | D72: 50 | E72: 120 | F72: 122.4 | G72: 102
A73: 2329 | B73: 3613 | C73: Nebytové hospodářství-ostatní nedaňové příjmy | D73: 50 | E73: 50 | F73: 0 | G73: 0
A74: 2329 | B74: 6171 | C74: Činnost místní správy-ostatní nedaňové příjmy | D74: 50 | E74: 50 | F74: 187.5 | G74: 375
A75: 2329 | B75: 6409 | C75: Ostatní činnosti j.n. | D75: 0 | E75: 0 | F75: 0.9 | G75: 0
A76: 23 | C76: Příjmy z prodeje nekapitálového majetku a ostatní nedaňové příjmy | D76: 510 | E76: =SUM(E62:E75) -> 753.4 | F76: =SUM(F62:F75) -> 1137.4 | G76: 150.9689408
A77: 2420 | B77: ---- | C77: Splátky - od SVJ - fasády | D77: 333.8 | E77: 333.8 | F77: 333.8 | G77: 100
A78: 2460 | B78: ---- | C78: Splátky - od obyvatelstva - půjčka sociální fond | D78: 30 | E78: 30 | F78: 20.9 | G78: 69.66666667
A79: 24 | C79: Přijaté splátky půjček | D79: 363.8 | E79: =SUM(E77:E78) -> 363.8 | F79: =SUM(F77:F78) -> 354.7 | G79: 97.49862562
A80: 2 | C80: Nedaňové příjmy | D80: 95717.4 | E80: =SUM(E79,E76,E61,E54) -> 87594.2 | F80: =SUM(F79,F76,F61,F54) -> 92075.9 | G80: 105.1164346
A81: 3111 | B81: 3639 | C81: Komunální služby - prodej pozemků | D81: 4000 | E81: 7076 | F81: 7127.2 | G81: 100.7235726
A82: 3113 | B82: 3639 | C82: Komunální služby | D82: 0 | E82: 505 | F82: 505 | G82: 100
A83: 31 | C83: Příjmy - prodej dlouhod.maj. | D83: 4000 | E83: 7581 | F83: =SUM(F81:F82) -> 7632.2 | G83: 100.6753726
A84: 3 | C84: Kapitálové příjmy | D84: 4000 | E84: =E83 -> 7581 | F84: =F83 -> 7632.2 | G84: 100.6753726
A85: 4111 | B85: ---- | C85: Transfery - z pokladní správy | D85: 0 | E85: 376.8 | F85: 376.8 | G85: 100
A86: 4112 | B86: ---- | C86: Transfery - souhrnný dotační vztah | D86: 19631.4 | E86: 19631.4 | F86: 19631.4 | G86: 100
A87: 4116 | B87: ---- | C87: Transfery - ze stát. rozpočtu | D87: 0 | E87: 8966.7 | F87: 8966.7 | G87: 100
A88: 4121 | B88: ---- | C88: Transfery - od obcí | D88: 0 | E88: 411.16 | F88: 411.2 | G88: 100.0097286
A89: 4122 | B89: ---- | C89: Transfery - od krajů | D89: 0 | E89: 645 | F89: 645 | G89: 100
A90: 41 | C90: Neinvestiční přijaté transfery | D90: 19631.4 | E90: =SUM(E85:E89) -> 30031.06 | F90: =SUM(F85:F89) -> 30031.1 | G90: 100.0001332
A91: 4216 | C91: Transfery - ze stát. rozpočtu | D91: 0 | E91: 651.9 | F91: 651.9 | G91: 100
A92: 4222 | B92: ---- | C92: Transfery - od krajů | D92: 0 | E92: 700.1 | F92: 700.1 | G92: 100
A93: 42 | C93: Investiční přijaté transfery | D93: 0 | E93: =SUM(E91:E92) -> 1352 | F93: =SUM(F91:F92) -> 1352 | G93: 100
A94: 4 | C94: Přijaté transfery | D94: 19631.4 | E94: =SUM(E93,E90) -> 31383.06 | F94: =SUM(F93,F90) -> 31383.1 | G94: 100.0001275
C95: CELKEM PŘÍJMY | D95: 327268.8 | E95: =E94+E84+E80+E25 -> 334488.26 | F95: =F94+F84+F80+F25 -> 343228.9 | G95: 102.6131381
A98: 8115 | C98: Financování-zapojení volných finančních prostředků ZBÚ | D98: =24488.15+18500 -> 42988.15 | E98: 44061 | G98: 0
A99: 8115 | C99: Financování-zapojení finančních prostředků FBI (rekonstrukce komuk.Blanická) | D99: 4000 | E99: 4000 | G99: 0
A100: 8115 | C100: Financování-zapojení finančních prostředků FIPO (ZŠ Hálkova-rekonstrukce střechy budovy školy) | D100: 3200 | E100: 3200 | G100: 0
A101: 8115 | C101: Financování-odvod odpisů do FIPO | D101: -2760 | E101: =-SUM(E36:E40) -> -2760 | G101: 0
A102: 8115 | C102: Financování-splátky půjček do SF | D102: -30 | E102: =-E78 -> -30 | G102: 0
A103: 8115 | C103: Financování-splátky půjček a úroků FRB | D103: =-D77-D50 -> -375.2 | E103: =-E77-E50 -> -375.2 | G103: 0
A104: 8115 | C104: Financování-odvod finančních prostředků do FBI | D104: -4000 | E104: =-E83 -> -7581 | G104: 0
A105: 8124 | C105: Uhrazené splátky úvěru u KB | D105: -1964 | E105: -1964 | F105: -1964 | G105: 100
A106: 8124 | C106: Uhrazené splátky úvěru u ČS | D106: -3000 | E106: -3000 | F106: -3000 | G106: 100
A107: 81 | C107: Financování z tuzemska | D107: 38058.95 | E107: =SUM(E98:E106) -> 35550.8 | F107: -13287.2 | G107: -37.37524894
A108: 89 | C108: Opravné položky k peněž.oper. | D108: 0 | E108: 0 | F108: -972.2
A109: 8 | C109: CELKEM FINANCOVÁNÍ | D109: 38058.95 | E109: =SUM(E107:E108) -> 35550.8 | F109: =SUM(F107:F108) -> -14259.4
C110: CELKEM PŘÍJMY + FINANCOVÁNÍ | D110: =D109+D95 -> 365327.75 | E110: =E109+E95 -> 370039.06 | F110: =F109+F95 -> 328969.5 | G110: 88.90129058
E113: Příjmy | F113: =F95 -> 343228.9
E114: Běžné výdaje | F114: ='Rozpis BV 2019'!G481 -> 219113.5
E115: Kapitálové výdaje | F115: ='Rozpis KV 2019'!G137 -> 109855.96
E116: Celkem výdaje | F116: =SUM(F114:F115) -> 328969.46
E117: Financování | F117: =F113-F114-F115 -> 14259.44
E120: Běžné příjmy | F120: =F25+F80+F90 -> 334244.7
E121: Běžné výdaje | F121: =F114 -> 219113.5
E123: Provozní saldo | F123: =F120-F121 -> 115131.2
E124: Provozní saldo v % (podíl na běžných příjmech) | F124: =F123/F120 -> 0.3444518342
E125: Splátky úvěru | F125: -3000
F126: =SUM(F125,F123) -> 112131.2

Sheet Rozpis BV 2019
A1: BĚŽNÉ VÝDAJE (v tis. Kč) - rozpis plnění k 31.12.2019
A3: ODPA | B3: POL | C3: ORG | D3: Popis | E3: Rozpočet 2019 | F3: Běžné výdaje po změně 2019 | G3: Skutečnost k 31.12.2019 | H3: % Plnění SK/UR
A4: 1014 | B4: 5169 | C4: 101400001 | D4: Péče o opuštěná zvířata | E4: 300 | F4: 300 | G4: 275.43 | H4: =G4/F4*100 -> 91.81
A5: 1014 | B5: 5169 | C5: 101400002 | D5: Deratizace | E5: 120 | F5: 120 | G5: 100.4 | H5: =G5/F5*100 -> 83.66666667
A6: 1037 | B6: 5169 | C6: 103700002 | D6: Obnova genofondu lesů | E6: 0 | F6: 17.8 | G6: 0 | H6: 0
A7: 1039 | B7: 5169 | C7: 103900001 | D7: Lesní hospodář | E7: 200 | F7: 200 | G7: 190 | H7: 95
A8: 1039 | B8: 5169 | C8: 103900004 | D8: Ostatní lesnické práce | E8: 20 | F8: 20 | G8: 0 | H8: 0
A9: 1039 | B9: 5171 | C9: 103900005 | D9: Opravy lesních cest | E9: 200 | F9: 200 | G9: 196.67 | H9: 98.335
A10: 1039 | B10: 5179 | C10: 103900006 | D10: Členský příspěvek-SVOS lesů | E10: 6 | F10: 6 | G10: 5.61 | H10: 93.5
A11: 10 | D11: Zemědělství a lesnictví | E11: =SUM(E4:E10) -> 846 | F11: =SUM(F4:F10) -> 863.8 | G11: 768.11 | H11: 88.92220421
A12: 2141 | B12: 5137 | D12: Farmářské trhy - DDHM | E12: 0 | F12: 43 | G12: 42.3 | H12: 98.37209302
A13: 2141 | B13: 5139 | C13: 214100001 | D13: Farmářské trhy-materiál | E13: 20 | F13: 0 | G13: 0 | H13: 0
A14: 2141 | B14: 5169 | C14: 214100002 | D14: Farmářské trhy-služby | E14: 130 | F14: 114 | G14: 113.9 | H14: 99.9122807
A15: 21 | D15: Průmysl,staveb.,obchod,služby | E15: =SUM(E12:E14) -> 150 | F15: =SUM(F12:F14) -> 157 | G15: =SUM(G12:G14) -> 156.2 | H15: 99.49044586
A16: 2212 | B16: 5166 | C16: 221200001 | D16: Studie komunikací | E16: 150 | F16: 160 | G16: 154.28 | H16: 96.425
A17: 2212 | B17: 5166 | C17: 221200035 | D17: Radar Rozkoš-studie proveditel. | E17: 50 | F17: 50 | G17: 0 | H17: 0
A18: 2212 | B18: 5169 | C18: 221200002 | D18: Čištění komunikací | E18: 2500 | F18: 2700 | G18: 2683.8 | H18: 99.4
A19: 2212 | B19: 5169 | C19: 221200003 | D19: Čištění MK- vybrané akce | E19: 130 | F19: 130 | G19: 126.3 | H19: 97.15384615
A20: 2212 | B20: 5169 | C20: 221200004 | D20: Psí exkrementy | E20: 500 | F20: 600 | G20: 582.8 | H20: 97.13333333
A21: 2212 | B21: 5169 | C21: 221200005 | D21: Zimní údržba komunikací | E21: 1500 | F21: 2550 | G21: 2336.4 | H21: 91.62352941
A22: 2212 | B22: 5169 | C22: 221200025 | D22: Místní komunikace - údržba | E22: 0 | F22: 100 | G22: 97.5 | H22: 97.5
A23: 2212 | B23: 5171 | C23: 221200008 | D23: Údržba kanalizačních vpustí | E23: 300 | F23: 410 | G23: 391.4 | H23: 95.46341463
A24: 2212 | B24: 5171 | C24: 221200009 | D24: Opravy MK město | E24: 1000 | F24: 2118 | G24: 2063.7 | H24: 97.43626062
A25: 2212 | B25: 5171 | C25: 221200010 | D25: Opravy MK-místní části | E25: 4000 | F25: 2743 | G25: 2251.4 | H25: 82.07801677
A26: 2212 | B26: 5171 | C26: 221200020 | D26: Dopravní značení Hrdličkova,Jindráčkova | E26: 180 | F26: 52 | G26: 28.8 | H26: 55.38461538
A27: 2212 | B27: 5171 | C27: 221200021 | D27: Dopravní značení - město | E27: 120 | F27: 228 | G27: 226 | H27: 99.12280702
A28: 2212 | B28: 5171 | C28: 221200022 | D28: Údržba přechodů | E28: 300 | F28: 300 | G28: 219.26 | H28: 73.08666667
A29: 2212 | B29: 5171 | C29: 221200062 | D29: Dopravní značení MČ | E29: 60 | F29: 60 | G29: 25 | H29: 41.66666667
A30: 2212 | B30: 5171 | C30: 221200063 | D30: Dopravní značení-Plačkov | E30: 20 | F30: 20 | G30: 0 | H30: 0
A31: 2212 | B31: 5171 | C31: 221200072 | D31: Opravy MK - metoda infra | E31: 1000 | F31: 872 | G31: 871.2 | H31: 99.90825688
A32: 2219 | B32: 5137 | C32: 221900070 | D32: Ostatní zál.poz.komun. DDHM | E32: 0 | F32: 16.1 | G32: 16.1 | H32: 100
A33: 2219 | B33: 5166 | C33: 221900001 | D33: Studie a projekty chodníků | E33: 150 | F33: 140 | G33: 39.3 | H33: 28.07142857
A34: 2219 | B34: 5169 | C34: 221900007 | D34: Zimní údržba chodníků | E34: 1000 | F34: 1200 | G34: 1064 | H34: 88.66666667
A35: 2219 | B35: 5171 | C35: 221900002 | D35: Opravy chodníků | E35: 200 | F35: 233.9 | G35: 183.2 | H35: 78.32407012
A36: 2221 | B36: 5171 | C36: 222100001 | D36: Opravy autobusových čekáren | E36: 120 | F36: 120 | G36: 5.31 | H36: 4.425
A37: 2229 | B37: 5169 | C37: 222900001 | D37: Likvidace autovraků | E37: 5 | F37: 5 | G37: 0 | H37: 0
A38: 2292 | B38: 5193 | C38: 229200002 | D38: Dopravní obslužnost | E38: 100 | F38: 100 | G38: 53.2 | H38: 53.2
A39: 22 | D39: Doprava | E39: =SUM(E16:E38) -> 13385 | F39: =SUM(F16:F38) -> 14908 | G39: =SUM(G16:G38) -> 13418.95 | H39: 90.01173866
A40: 2310 | B40: 5151 | C40: 231000001 | D40: Voda - nákup pitné vody | E40: 11000 | F40: 11000 | G40: 10038.2 | H40: 91.25636364
A41: 2310 | B41: 5166 | C41: 231000002 | D41: Voda - nové studie | E41: 300 | F41: 50 | G41: 10.9 | H41: 21.8
A42: 2310 | B42: 5166 | C42: 231000003 | D42: Vodovod Mánesova-studie oprav | E42: 175 | F42: 0 | G42: 0 | H42: 0
A43: 2310 | B43: 5166 | C43: 231000004 | D43: Vodovod Mararykova-studie oprav | E43: 60.5 | F43: 60.5 | G43: 60.5 | H43: 100
A44: 2310 | B44: 5166 | C44: 231000005 | D44: Vodovod Jihlavská-studie oprav | E44: 80 | F44: 80 | G44: 0 | H44: 0
A45: 2310 | B45: 5169 | C45: 231000009 | D45: Pumpy a studně Plačkov-kontrola | E45: 50 | F45: 50 | G45: 50 | H45: 100
A46: 2310 | B46: 5169 | C46: 231000010 | D46: Vodovod - provozovatelská smlouva | E46: 12256 | F46: 12256 | G46: 12194.2 | H46: 99.49575718
A47: 2310 | B47: 5171 | C47: 231000011 | D47: Vodovod - běžné opravy | E47: 43 | F47: 214 | G47: 211.9 | H47: 99.01869159
A48: 2310 | B48: 5171 | C48: 231000024 | D48: Oprava vodovodu Čejovská | E48: 242 | F48: 242 | G48: 241.6 | H48: 99.83471074
A49: 2310 | B49: 5171 | C49: 231000025 | D49: Vodovod Masarykova-oprava | E49: 900 | F49: 900 | G49: 898.62 | H49: 99.84666667
A50: 2310 | B50: 5171 | C50: 231000026 | D50: Vodovod Zahradní-oprava | E50: 4950 | F50: 5408 | G50: 5408 | H50: 100
A51: 2310 | B51: 5171 | C51: 231000032 | D51: Čerpací stanice Rozkoš-opravy | E51: 200 | F51: 140 | G51: 124.1 | H51: 88.64285714
A52: 2310 | B52: 5171 | C52: 231000034 | D52: Vodárenské dispečinky-opravy | E52: 450 | F52: 450 | G52: 422.85 | H52: 93.96666667
A53: 2321 | B53: 5166 | C53: 232100001 | D53: Kanalizace-studie | E53: 500 | F53: 42 | G53: 29.7 | H53: 70.71428571
A54: 2321 | B54: 5166 | C54: 232100002 | D54: Hygienizace kalů na ČOV-studie | E54: 100 | F54: 0 | G54: 0 | H54: 0
A55: 2321 | B55: 5166 | C55: 232100025 | D55: Kanalizace Jiřická | E55: 27.5 | F55: 0 | G55: 0 | H55: 0
A56: 2321 | B56: 5166 | C56: 232100026 | D56: Kanalizace U Kaštanu | E56: 34.7 | F56: 0 | G56: 0 | H56: 0
A57: 2321 | B57: 5166 | C57: 232100027 | D57: Kanalizace Mánesova | E57: 36.5 | F57: 0 | G57: 0 | H57: 0
A58: 2321 | B58: 5169 | C58: 232100004 | D58: Provoz ČOV v LTRN | E58: 257 | F58: 257 | G58: 256.1 | H58: 99.64980545
A59: 2321 | B59: 5169 | C59: 232100007 | D59: Kanalizace - provozovatelská smlouva | E59: 13595 | F59: 13595 | G59: 13581.3 | H59: 99.89922766
A60: 2321 | B60: 5169 | C60: 232100012 | D60: Zateplení budovy ČOV | E60: 22 | F60: 22 | G60: 18.84 | H60: 85.63636364
A61: 2321 | B61: 5171 | C61: 232100008 | D61: Kanalizace - běžné opravy | E61: 1444 | F61: 1300 | G61: 1034.4 | H61: 79.56923077
A62: 2321 | B62: 5171 | C62: 232100013 | D62: Budova ČOV-oprava fasády | E62: 400 | F62: 0 | G62: 0 | H62: 0
A63: 2321 | B63: 5171 | C63: 232100014 | D63: Elektroinst.a stropy ČOV-opravy | E63: 500 | F63: 670 | G63: 669.4 | H63: 99.91044776
A64: 2321 | B64: 5171 | C64: 232100016 | D64: Kanalizace Masarykova-oprava | E64: 1200 | F64: 1200 | G64: 1200 | H64: 100
A65: 2321 | B65: 5171 | C65: 232100017 | D65: Kanalizace Čejovská-oprava | E65: 220 | F65: 220 | G65: 219.88 | H65: 99.94545455
A66: 2321 | B66: 5171 | C66: 232100033 | D66: Oprava kanalizace u dopr.hřiště | E66: 0 | F66: 468 | G66: 467.3 | H66: 99.85042735
A67: 2349 | B67: 5222 | C67: 234900001 | D67: Dotace-Český ryb.svaz | E67: 15 | F67: 15 | G67: 15 | H67: 100
A68: 2349 | B68: 5222 | C68: 234900002 | D68: Dotace-Český ryb.svaz | E68: 45 | F68: 45 | G68: 45 | H68: 100
A69: 23 | D69: Vodní hospodářství | E69: =SUM(E40:E68) -> 49103.2 | F69: =SUM(F40:F68) -> 48684.5 | G69: =SUM(G40:G68) -> 47197.79 | H69: =G69/F69*100 -> 96.94623545
A70: 3111 | B70: 5331 | D70: Neinvestiční příspěvky zřízeným PO - MŠ | E70: 3850 | F70: 3850 | G70: 3850 | H70: 100
A71: 3111 | B71: 5336 | D71: Neinvestiční transfery -MŠ- průtok | E71: 0 | F71: 72 | G71: 71.97 | H71: 99.95833333
A72: 3113 | B72: 5331 | C72: 321 | D72: Neinv. příspěvky zřízeným PO-ZŠ Hálkova | E72: 7078 | F72: 6673.9 | G72: 6673.9 | H72: 100
A73: 3113 | B73: 5331 | C73: 322 | D73: Neinv. příspěvky zřízeným PO-ZŠ Hradská | E73: 5412 | F73: 5602.2 | G73: 5602.2 | H73: 100
A74: 3113 | B74: 5336 | C74: 321 | D74: Neinv. dotace zřízeným PO ZŠ Hálkova-průtok | E74: 0 | F74: 1485.4 | G74: 1485.4 | H74: 100
A75: 3113 | B75: 5901 | D75: Rezerva oddílu vzdělávání | E75: 0 | F75: 454.1 | G75: 0 | H75: 0
A76: 3119 | B76: 5169 | C76: 311900001 | D76: Projekt Post Bellum | E76: 0 | F76: 150 | G76: 109.5 | H76: 73
A77: 3119 | B77: 5221 | C77: 311900001 | D77: Projekt Post Bellum | E77: 150 | F77: 0 | G77: 0 | H77: 0
A78: 3121 | B78: 5339 | C78: 312100001 | D78: Dotace-Gymnázium Dr.A.Hrdličky | E78: 50 | F78: 50 | G78: 50 | H78: 100
A79: 3122 | B79: 5339 | C79: 312200001 | D79: Dotace-Česká zem.akademie | E79: 40 | F79: 40 | G79: 40 | H79: 100
A80: 31 | D80: Vzdělávání předškolní a základní | E80: =SUM(E70:E79) -> 16580 | F80: =SUM(F70:F79) -> 18377.6 | G80: =SUM(G70:G79) -> 17882.97 | H80: 97.30851689
A81: 3231 | B81: 5331 | D81: Neinvestiční příspěvky zřízeným PO - ZUŠ | E81: 251 | F81: 251 | G81: 251 | H81: 100
A82: 3231 | B82: 5336 | C82: 324 | D82: Neinvestiční transfery zřízeným PO - ZUŠ-průtok | E82: 0 | F82: 1166.2 | G82: 1166.17 | H82: 99.99742754
A83: 3233 | B83: 5331 | D83: Příspěvky zřízeným PO - SVČ | E83: 2139 | F83: 2139 | G83: 2139 | H83: 100
A84: 32 | D84: Vzdělávání a školské služby | E84: 2390 | F84: =SUM(F81:F83) -> 3556.2 | G84: 3556.17 | H84: 99.9991564
A85: 3312 | B85: 5222 | C85: 331200001 | D85: Dotace-Spol.pro rozvoj kultur. | E85: 22 | F85: 22 | G85: 22 | H85: 100
A86: 3313 | B86: 5221 | C86: 331300001 | D86: Dotace-Castrum (film.festival) | E86: 50 | F86: 50 | G86: 50 | H86: 100
A87: 3314 | B87: 5493 | C87: 331400001 | D87: Dotace-Mgr.Kamešová (Andersen) | E87: 4 | F87: 4 | G87: 4 | H87: 100
A88: 3315 | B88: 5139 | C88: 331500002 | D88: Antropologický kongres - materiál | E88: 150 | F88: 150 | G88: 141.3 | H88: 94.2
A89: 3315 | B89: 5164 | C89: 331500003 | D89: Antropologický kongres - nájemné | E89: 0 | F89: 5 | G89: 5 | H89: 100
A90: 3315 | B90: 5169 | C90: 331500003 | D90: Antropologický kongres - služby | E90: 500 | F90: 290.1 | G90: 146.4 | H90: 50.46535677
A91: 3315 | B91: 5175 | C91: 331500003 | D91: Antropologický kongres - pohoštění | E91: 0 | F91: 91 | G91: 90.5 | H91: 99.45054945
A92: 3315 | B92: 5194 | C92: 331500004 | D92: Antropologický kongres -věcné dary | E92: 60 | F92: 173.91 | G92: 173.91 | H92: 100
A93: 3315 | B93: 5494 | C93: 331500001 | D93: Ceny Dr. A. Hrdličky | E93: 60 | F93: 60 | G93: 15 | H93: 25
A94: 3319 | B94: 5222 | C94: 331900002 | D94: Dotace-Veřejná platforma(kult.akce) | E94: 100 | F94: 100 | G94: 100 | H94: 100
A95: 3319 | B95: 5331 | D95: Neinvestiční příspěvky zřízeným PO-MěKIS | E95: 8648 | F95: 8833.7 | G95: 8833.7 | H95: 100
A96: 3319 | B96: 5336 | C96: 3319002 | D96: Grant pro MěKIS - Humpolecké kulturní léto -průtok | E96: 0 | F96: 50 | G96: 50 | H96: 100
A97: 3319 | B97: 5336 | C97: 3319003 | D97: Grant pro MěKIS - Podpora turistických center-průtok | E97: 0 | F97: 52.7 | G97: 52.7 | H97: 100
A98: 3319 | B98: 5493 | C98: 331900001 | D98: Dotace-Zabloudilová(čaroděj.) | E98: 10 | F98: 10 | G98: 10 | H98: 100
A99: 3319 | B99: 5493 | C99: 331900003 | D99: Dotace-Krejčí (kult.akce) | E99: 12 | F99: 12 | G99: 12 | H99: 100
A100: 3319 | B100: 5493 | C100: 331900004 | D100: Dotace-Vaněček(PechaKucha Nig) | E100: 10 | F100: 10 | G100: 10 | H100: 100
A101: 3319 | B101: 5493 | C101: 331900005 | D101: Dotace-Vyvadilová (kult.akce) | E101: 10 | F101: 10 | G101: 10 | H101: 100
A102: 3319 | B102: 5493 | C102: 331900006 | D102: Dotace-Hodač (Dětský fesťák) | E102: 10 | F102: 10 | G102: 10 | H102: 100
A103: 3319 | B103: 5493 | C103: 331900008 | D103: Dotace-Svobodová (kult.akce) | E103: 5 | F103: 5 | G103: 5 | H103: 100
A104: 3319 | B104: 5493 | C104: 331900009 | D104: Dotace-Varlamovič(vydání knihy) | E104: 50 | F104: 50 | G104: 50 | H104: 100
A105: 3322 | B105: 5154 | C105: 332200010 | D105: Budova čp. 338 Zichpil - el.energie | E105: 10 | F105: 10 | G105: 2.5 | H105: 25
A106: 3322 | B106: 5166 | C106: 332200001 | D106: Státní památková péče -posudky | E106: 30 | F106: 13.3 | G106: 0 | H106: 0
A107: 3322 | B107: 5169 | C107: 332200002 | D107: Hrad Orlík - služby, oprava(archeologie,studie,posudky) | E107: 150 | F107: 150 | G107: 75.4 | H107: 50.26666667
A108: 3322 | B108: 5169 | C108: 332200003 | D108: Budova čp. 253 Dolní nám.-údržba,revize | E108: 80 | F108: 20 | G108: 0 | H108: 0
A109: 3322 | B109: 5171 | C109: 332200002 | D109: Hrad Orlík - opravy | E109: 200 | F109: 50 | G109: 49.8 | H109: 99.6
A110: 3322 | B110: 5171 | C110: 332200003 | D110: Budova čp. 253 Dolní nám.-opravy | E110: 80 | F110: 170 | G110: 114.4 | H110: 67.29411765
A111: 3322 | B111: 5171 | C111: 332200006 | D111: SPP - opr. neudržitelných památek | E111: 20 | F111: 20 | G111: 0 | H111: 0
A112: 3322 | B112: 5171 | C112: 332200009 | D112: Budova čp. 250 Dolní nám.-opravy | E112: 60 | F112: 60 | G112: 52.7 | H112: 87.83333333
A113: 3322 | B113: 5171 | C113: 332200010 | D113: Budova čp. 338 Zichpil-opravy | E113: 50 | F113: 50 | G113: 38.4 | H113: 76.8
A114: 3326 | B114: 5154 | C114: 332600004 | D114: Toleranční kostel-el.energie | E114: 3 | F114: 3 | G114: 2.6 | H114: 86.66666667
A115: 3326 | B115: 5169 | C115: 332600001 | D115: Kapličky - revize | E115: 20 | F115: 20 | G115: 19 | H115: 95
A116: 3326 | B116: 5171 | C116: 332600002 | D116: Boží muka, křížky - opravy | E116: 20 | F116: 20 | G116: 11.9 | H116: 59.5
A117: 3326 | B117: 5171 | C117: 332600003 | D117: Kapličky - opravy | E117: 50 | F117: 50 | G117: 0 | H117: 0
A118: 3326 | B118: 5171 | C118: 332600005 | D118: Zvonička Hněvkovice-oprava | E118: 30 | F118: 30 | G118: 0.73 | H118: 2.433333333
A119: 3326 | B119: 5171 | C119: 332600006 | D119: Kaplička Kletečná - opravy | E119: 60 | F119: 60 | G119: 38 | H119: 63.33333333
A120: 3326 | B120: 5171 | C120: 332600007 | D120: Kaplička Petrovice - opravy | E120: 150 | F120: 150 | G120: 149.31 | H120: 99.54
A121: 3326 | B121: 5213 | D121: Dotace-Win Reality Win(fasáda čp.171 ) | E121: 0 | F121: 160 | G121: 145.8 | H121: 91.125
A122: 3326 | B122: 5493 | C122: 332600015 | D122: Dotace-Eremková (fasáda čp.470) | E122: 0 | F122: 205.53 | G122: 205.5 | H122: 99.98540359
A123: 3326 | B123: 5901 | C123: ---------- | D123: Nespecifikované rezervy-rezerva na fasády historických objektů | E123: 500 | F123: 134.47 | G123: 0 | H123: 0
A124: 3330 | B124: 5223 | C124: 333000003 | D124: Dotace-Čes.církev evangel. | E124: 43.6 | F124: 68.6 | G124: 68.6 | H124: 100
A125: 3330 | B125: 5223 | C125: 333000004 | D125: Dotace-Římskokat.církev | E125: 15 | F125: 15 | G125: 15 | H125: 100
A126: 3330 | B126: 5223 | C126: 333000005 | D126: Dotace-Římskokat.církev | E126: 30 | F126: 30 | G126: 30 | H126: 100
A127: 3399 | B127: 5139 | C127: 339900001 | D127: KPOZ-materiál | E127: 50 | F127: 50 | G127: 18.8 | H127: 37.6
A128: 3399 | B128: 5169 | C128: 339900002 | D128: KPOZ-služby | E128: 30 | F128: 30 | G128: 23.8 | H128: 79.33333333
A129: 3399 | B129: 5194 | C129: 339900003 | D129: KPOZ-věcné dary | E129: 470 | F129: 470 | G129: 429.3 | H129: 91.34042553
A130: 33 | D130: Kultura, církve | E130: 11852.6 | F130: =SUM(F85:F129) -> 12029.31 | G130: =SUM(G85:G129) -> 11283.05 | H130: 93.79631916
A131: 3412 | B131: 5137 | C131: 341200015 | D131: Městská hřiště - herní prvky | E131: 300 | F131: 35 | G131: 0 | H131: 0
A132: 3412 | B132: 5137 | C132: 341200016 | D132: ZS, FS-defiblirátory | E132: 72 | F132: 72 | G132: 71.87 | H132: 99.81944444
A133: 3412 | B133: 5169 | C133: 341200007 | D133: Údržba hřiště Plačkov | E133: 0 | F133: 21 | G133: 0 | H133: =G133/F133*100 -> 0
A134: 3412 | B134: 5169 | C134: 341200029 | D134: Sportoviště - revize, kontroly | E134: 280 | F134: 300 | G134: 275.1 | H134: 91.7
A135: 3412 | B135: 5169 | C135: 341200065 | D135: Zimní stadion-revize kompresorů | E135: 120 | F135: 100 | G135: 0 | H135: 0
A136: 3412 | B136: 5169 | C136: 341200066 | D136: Provoz tenisových hal | E136: 95 | F136: 95 | G136: 94.4 | H136: 99.36842105
A137: 3412 | B137: 5171 | C137: 341200001 | D137: Údržba městských hřišť | E137: 350 | F137: 424 | G137: 388.3 | H137: 91.58018868
A138: 3412 | B138: 5171 | C138: 341200002 | D138: Údržba hřišť v MČ | E138: 300 | F138: 226 | G138: 126.84 | H138: 56.12389381
A139: 3412 | B139: 5171 | C139: 341200003 | D139: Opravy-Sportovní areál Okružní | E139: 1000 | F139: 644.5 | G139: 537.7 | H139: 83.42901474
A140: 3412 | B140: 5171 | C140: 341200004 | D140: Údržba hřiště Plačkov | E140: 20 | F140: 20 | G140: 7.3 | H140: 36.5
A141: 3412 | B141: 5171 | C141: 341200005 | D141: Údržba hřiště Vilémov | E141: 30 | F141: 29 | G141: 16.71 | H141: 57.62068966
A142: 3412 | B142: 5171 | C142: 341200006 | D142: Údržba sportovišť Krasoňov | E142: 50 | F142: 50 | G142: 24.39 | H142: 48.78
A143: 3412 | B143: 5171 | C143: 341200007 | D143: Údržba hřiště Plačkov | E143: 145 | F143: 4.1 | G143: 4.13 | H143: 100.7317073
A144: 3412 | B144: 5171 | C144: 341200040 | D144: Koupaliště-oprava atrakcí | E144: 100 | F144: 100 | G144: 18.2 | H144: 18.2
A145: 3412 | B145: 5171 | C145: 341200041 | D145: Koupaliště-oprava brouzdaliště | E145: 100 | F145: 100 | G145: 99.03 | H145: 99.03
A146: 3412 | B146: 5171 | C146: 341200044 | D146: Zimní stadion-výměna kotle | E146: 150 | F146: 150 | G146: 139.52 | H146: 93.01333333
A147: 3412 | B147: 5171 | C147: 341200045 | D147: Zimní stadion-výměna ventilů | E147: 100 | F147: 100 | G147: 0 | H147: 0
A148: 3412 | B148: 5171 | C148: 341200050 | D148: Fotbalové hřiště-údržba přírodní trávy | E148: 200 | F148: 250 | G148: 224.5 | H148: 89.8
A149: 3412 | B149: 5171 | C149: 341200051 | D149: Fotbalové hřiště-oprava ploch | E149: 200 | F149: 150 | G149: 146.2 | H149: 97.46666667
A150: 3412 | B150: 5171 | C150: 341200052 | D150: Fotbalový stadion-výměna oken | E150: 70 | F150: 70 | G150: 67.49 | H150: 96.41428571
A151: 3412 | B151: 5171 | C151: 341200062 | D151: Tenisová hala Hálk.-oprava vod | E151: 50 | F151: 50 | G151: 40 | H151: 80
A152: 3412 | B152: 5171 | C152: 341200063 | D152: Tenisová hala Hálkova - údržba | E152: 50 | F152: 50 | G152: 43.01 | H152: 86.02
A153: 3412 | B153: 5171 | C153: 341200067 | D153: Tenisová hala Hradská - údržba | E153: 50 | F153: 50 | G153: 16.2 | H153: 32.4
A154: 3412 | B154: 5192 | C154: 341200005 | D154: Údržba hřiště Vilémov | E154: 0 | F154: 1 | G154: 1 | H154: 100
A155: 3419 | B155: 5169 | C155: 341900009 | D155: Sportovní akce města | E155: 5 | F155: 5 | G155: 0 | H155: 0
A156: 3419 | B156: 5175 | C156: 341900009 | D156: Sportovní akce města | E156: 5 | F156: 5 | G156: 4.6 | H156: 92
A157: 3419 | B157: 5221 | C157: 341900008 | D157: Dotace-Soutěže podkovy | E157: 150 | F157: 150 | G157: 150 | H157: 100
A158: 3419 | B158: 5222 | C158: 341900002 | D158: Dotace-TJ Jiskra (činnost) | E158: 3600 | F158: 3600 | G158: 3600 | H158: 100
A159: 3419 | B159: 5222 | C159: 341900003 | D159: Dotace-TJ Jiskra (trenéři) | E159: 700.6 | F159: 700.6 | G159: 700 | H159: 99.91435912
A160: 3419 | B160: 5222 | C160: 341900004 | D160: Dotace-LTC (činnost,nájemné) | E160: 1224.46 | F160: 1224.46 | G160: 1224.46 | H160: 100
A161: 3419 | B161: 5222 | C161: 341900005 | D161: Dotace-LTC (trenéři) | E161: 150 | F161: 150 | G161: 150 | H161: 100
A162: 3419 | B162: 5222 | C162: 341900011 | D162: Dotace-Taekwondo (činnost) | E162: 20 | F162: 20 | G162: 20 | H162: 100
A163: 3419 | B163: 5222 | C163: 341900013 | D163: Dotace-Sdr.přátel Krasoňova | E163: 10 | F163: 10 | G163: 10 | H163: 100
A164: 3419 | B164: 5222 | C164: 341900014 | D164: Dotace-TJ Krasoňov | E164: 15 | F164: 15 | G164: 15 | H164: 100
A165: 3419 | B165: 5222 | C165: 341900016 | D165: Dotace-TJ Petrovice | E165: 30 | F165: 30 | G165: 30 | H165: 100
A166: 3419 | B166: 5222 | C166: 341900017 | D166: Dotace-TJ Plačkov | E166: 60 | F166: 60 | G166: 60 | H166: 100
A167: 3419 | B167: 5222 | C167: 341900018 | D167: Dotace-Automotoklub (závody) | E167: 420 | F167: 420 | G167: 420 | H167: 100
A168: 3419 | B168: 5222 | C168: 341900019 | D168: Dotace-Jezdecký klub(závody) | E168: 35 | F168: 35 | G168: 35 | H168: 100
A169: 3419 | B169: 5222 | C169: 341900021 | D169: Dotace-Jezdecký klub(trenéři) | E169: 20 | F169: 20 | G169: 20 | H169: 100
A170: 3421 | B170: 5137 | C170: 342100002 | D170: Dopravní hřiště-pořízení nových kol pro dopr.výuku | E170: 75 | F170: 75 | G170: 69.3 | H170: 92.4
A171: 3421 | B171: 5139 | C171: 342100002 | D171: Dopravní hřiště-odměny DSMC -místní a okresní kolo | E171: 12 | F171: 12 | G171: 7 | H171: 58.33333333
A172: 3421 | B172: 5169 | C172: 342100002 | D172: Dopravní hřiště-Služby DSMC | E172: 5 | F172: 5 | G172: 0 | H172: 0
A173: 3421 | B173: 5171 | C173: 342100001 | D173: Dopravní hřiště - opravy kol a zařízení | E173: 15 | F173: 15 | G173: 9.5 | H173: 63.33333333
A174: 3421 | B174: 5175 | C174: 342100002 | D174: Dopravní hřiště-občerstvení dopr.soutěž ml.cyklistů | E174: 8 | F174: 8 | G174: 1.71 | H174: 21.375
A175: 3421 | B175: 5222 | C175: 342100003 | D175: Dotace-AFC (činnost) | E175: 2000 | F175: 2000 | G175: 2000 | H175: 100
A176: 3421 | B176: 5222 | C176: 342100004 | D176: Dotace-AFC (trenéři) | E176: 300 | F176: 300 | G176: 300 | H176: 100
A177: 3421 | B177: 5222 | C177: 342100005 | D177: Dotace-ATOM Šlápoty(činnost) | E177: 30 | F177: 30 | G177: 30 | H177: 100
A178: 3421 | B178: 5222 | C178: 342100007 | D178: Dotace-Junák (činnost) | E178: 35 | F178: 35 | G178: 35 | H178: 100
A179: 3429 | B179: 5222 | C179: 342900002 | D179: Dotace-Klub Veteráni(přehlídka | E179: 5 | F179: 5 | G179: 5 | H179: 100
A180: 3429 | B180: 5222 | C180: 342900003 | D180: Dotace-Turisté (činnost) | E180: 23.3 | F180: 23.3 | G180: 23.3 | H180: 100
A181: 3429 | B181: 5222 | C181: 342900004 | D181: Dotace-KČT (činnost) | E181: 50 | F181: 50 | G181: 50 | H181: 100
A182: 3429 | B182: 5222 | C182: 342900005 | D182: Dotace-Svaz důch.(činnost) | E182: 60 | F182: 60 | G182: 60 | H182: 100
A183: 3429 | B183: 5222 | C183: 342900006 | D183: Dotace-Svaz chovatelů(výstava) | E183: 8 | F183: 8 | G183: 8 | H183: 100
A184: 3429 | B184: 5222 | C184: 342900008 | D184: Dotace-Český svaz včelařů | E184: 50 | F184: 50 | G184: 50 | H184: 100
A185: 3429 | B185: 5222 | C185: 342900010 | D185: Dotace-Mysliv. sdruž.Petrovice | E185: 20 | F185: 20 | G185: 20 | H185: 100
A186: 3429 | B186: 5222 | C186: 342900011 | D186: Dotace-Mysliv. sdruž. Humpolec | E186: 4 | F186: 4 | G186: 4 | H186: 100
A187: 3429 | B187: 5493 | C187: 342900001 | D187: Dotace-David Marek(triatlon) | E187: 5 | F187: 5 | G187: 5 | H187: 100
A188: 3429 | B188: 5493 | C188: 342900012 | D188: Dotace-Ing.Voplakal(sport.akce) | E188: 25 | F188: 25 | G188: 25 | H188: 100
A189: 3429 | B189: 5493 | C189: 342900013 | D189: Dotace-Prokůpek Vít (závody) | E189: 3 | F189: 3 | G189: 3 | H189: 100
A190: 3429 | B190: 5493 | C190: 342900014 | D190: Dotace-Ing.Dygrýn (basketbal) | E190: 30 | F190: 30 | G190: 30 | H190: 100
A191: 3429 | B191: 5493 | C191: 342900015 | D191: Dotace-Novák Aleš (cykl.závod) | E191: 10 | F191: 10 | G191: 10 | H191: 100
A192: 34 | D192: Sport a zájmová činnost | E192: =SUM(E131:E191) -> 13050.36 | F192: =SUM(F131:F191) -> 12309.96 | G192: =SUM(G131:G191) -> 11526.76 | H192: 93.63767226
A193: 3612 | B193: 5139 | D193: Bytové hospod.-materiál | E193: 50 | F193: 50 | G193: 48.6 | H193: 97.2
A194: 3612 | B194: 5151 | C194: ---------- | D194: Bytové hospod.-studená voda | E194: 1200 | F194: 1285 | G194: 1284.8 | H194: 99.9844358
A195: 3612 | B195: 5152 | C195: ---------- | D195: Bytové hospod.-teplo | E195: 3300 | F195: 3215 | G195: 2032.5 | H195: 63.2192846
A196: 3612 | B196: 5153 | C196: ---------- | D196: Bytové hospod.-plyn | E196: 400 | F196: 400 | G196: 225 | H196: 56.25
A197: 3612 | B197: 5154 | C197: ---------- | D197: Bytové hospod.-elektrická energie | E197: 400 | F197: 400 | G197: 334.5 | H197: =G197/F197*100 -> 83.625
A198: 3612 | B198: 5157 | C198: ---------- | D198: Bytové hospod.-teplá voda | E198: 700 | F198: 700 | G198: 596.7 | H198: 85.24285714
A199: 3612 | B199: 5161 | C199: ---------- | D199: Bytové hospod.-poštovní služby | E199: 25 | F199: 25 | G199: 19.4 | H199: 77.6
A200: 3612 | B200: 5162 | C200: ---------- | D200: Bytové hospod.-služby telekomunikací | E200: 10 | F200: 10 | G200: 6.9 | H200: 69
A201: 3612 | B201: 5169 | C201: 361200006 | D201: Bytový dům s MŠ (projekt) | E201: 0 | F201: 47.5 | G201: 47.5 | H201: 100
... 280 more rows

Sheet Rozpis KV 2019
A1: KAPITÁLOVÉ VÝDAJE (v tis. Kč) - rozpis plnění rozpočtu k 31. 12. 2019
A3: ODPA | B3: POL | C3: ORG | D3: Popis | E3: Rozpočet 2019 | F3: Kapitálové výdaje po změně 2019 | G3: Skutečnost 31.12.2019 | H3: % Plnění SK/UR
A4: 2212 | B4: 6121 | C4: 221200006 | D4: Dopravní značení-zrcadla | E4: 90 | F4: 48 | G4: 0 | H4: =G4/F4*100 -> 0
A5: 2212 | B5: 6121 | C5: 221200007 | D5: Projekty komunikací | E5: 150 | F5: 150 | G5: 86 | H5: =G5/F5*100 -> 57.33333333
A6: 2212 | B6: 6121 | C6: 221200064 | D6: Doprav znač.-zrcadla Plačkov | E6: 60 | F6: 0 | G6: 0 | H6: 0
A7: 2212 | B7: 6121 | C7: 221200092 | D7: Rekonstrukce MK Pelhřimovská | E7: 80 | F7: 80 | G7: 24.2 | H7: 30.25
A8: 2212 | B8: 6121 | C8: 221200098 | D8: Rekonstrukce MK Masarykova -PD | E8: 200 | F8: 200 | G8: 90.75 | H8: 45.375
A9: 2212 | B9: 6121 | C9: 221200099 | D9: Rekonstrukce MK Nádražní | E9: 110 | F9: 110 | G9: 93 | H9: 84.54545455
A10: 2212 | B10: 6121 | C10: 221200101 | D10: Rekonstrukce křiž VODAK-PD | E10: 12400 | F10: 10150 | G10: 10104.5 | H10: 99.55172414
A11: 2212 | B11: 6121 | C11: 221200102 | D11: Rekonstrukce MK Vilémov | E11: 90 | F11: 90 | G11: 72.2 | H11: 80.22222222
A12: 2212 | B12: 6121 | C12: 221200104 | D12: Rekonstrukce MK Školní | E12: 3700 | F12: 2900 | G12: 2898.7 | H12: 99.95517241
A13: 2212 | B13: 6121 | C13: 221200105 | D13: Rekonstrukce MK Jiřická-U Kaštanu | E13: 80 | F13: 20 | G13: 0 | H13: 0
A14: 2212 | B14: 6121 | C14: 221200106 | D14: Komunikace park Stromovka | E14: 520 | F14: 520 | G14: 517.22 | H14: 99.46538462
A15: 2212 | B15: 6121 | C15: 221200107 | D15: Rekonstrukce MK Blanická | E15: 4800 | F15: 3650 | G15: 3637.2 | H15: 99.64931507
A16: 2212 | B16: 6121 | C16: 221200108 | D16: Rekonstrukce MK Hněvkovice | E16: 50 | F16: 80 | G16: 18.2 | H16: 22.75
A17: 2212 | B17: 6121 | C17: 221200109 | D17: Rekonstrukce MK Kletečná | E17: 50 | F17: 80 | G17: 75 | H17: 93.75
A18: 2212 | B18: 6121 | C18: 221200110 | D18: Rekonstrukce MK Máchova-Fügner. | E18: 300 | F18: 50 | G18: 42.4 | H18: 84.8
A19: 2212 | B19: 6121 | C19: 221200111 | D19: Rekonstrukce MK 5.květ.-Hradská | E19: 150 | F19: 90 | G19: 54.5 | H19: 60.55555556
A20: 2212 | B20: 6121 | C20: 221200112 | D20: Rekonstrukce MK U Stadionu | E20: 300 | F20: 300 | G20: 49.61 | H20: 16.53666667
A21: 2212 | B21: 6121 | C21: 221200113 | D21: Rekonstrukce MK 5.květ.-Jihlav. | E21: 80 | F21: 80 | G21: 78.7 | H21: 98.375
A22: 2212 | B22: 6121 | C22: 221200114 | D22: Rekonstr.křiž. Okružní-Pelhřim. | E22: 90 | F22: 0 | G22: 0 | H22: 0
A23: 2212 | B23: 6121 | C23: 221200115 | D23: Rekonstrukce MK Jihlavská | E23: 200 | F23: 200 | G23: 124.63 | H23: 62.315
A24: 2212 | B24: 6121 | C24: 221200116 | D24: Rekonstrukce MK 5.května | E24: 200 | F24: 200 | G24: 117.4 | H24: 58.7
A25: 2212 | B25: 6121 | C25: 221200117 | D25: Zpomalovací prahy Hněvkovice | E25: 100 | F25: 100 | G25: 54 | H25: 54
A26: 2212 | B26: 6121 | C26: 221200118 | D26: Rekonstrukce MK-místní části | E26: 0 | F26: 209 | G26: 209 | H26: 100
A27: 2212 | B27: 6121 | C27: 221200119 | D27: MK J. Hrušky - stavební úpravy | E27: 0 | F27: 190 | G27: 186.3 | H27: 98.05263158
A28: 2219 | B28: 6121 | C28: 221900001 | D28: Studie a projekty chodníků | E28: 150 | F28: 150 | G28: 84.3 | H28: 56.2
A29: 2219 | B29: 6121 | C29: 221900013 | D29: Chodník Lipnická,Vyhlídka-PD | E29: 210 | F29: 210 | G29: 203.7 | H29: 97
A30: 2219 | B30: 6121 | C30: 221900014 | D30: Chodník E.Dítě-PD | E30: 250 | F30: 310 | G30: 303.1 | H30: 97.77419355
A31: 2219 | B31: 6121 | C31: 221900015 | D31: Chodník Světlice-PD | E31: 70 | F31: 70 | G31: 46 | H31: 65.71428571
A32: 2219 | B32: 6121 | C32: 221900016 | D32: Chodník Petrovice-PD | E32: 80 | F32: 80 | G32: 70.87 | H32: 88.5875
A33: 2219 | B33: 6121 | C33: 221900021 | D33: Chodník Lužická | E33: 80 | F33: 80 | G33: 49 | H33: 61.25
A34: 2219 | B34: 6121 | C34: 221900022 | D34: Chodník Pelhřimovská | E34: 80 | F34: 80 | G34: 14.5 | H34: 18.125
A35: 2219 | B35: 6121 | C35: 221900043 | D35: Chodník Hněvkovice | E35: 40 | F35: 40 | G35: 0 | H35: 0
A36: 2219 | B36: 6121 | C36: 221900044 | D36: Chodník Okružní-PD | E36: 0 | F36: 60 | G36: 58.1 | H36: 96.83333333
A37: 2219 | B37: 6121 | C37: 221900053 | D37: Chodník Krasoňov-dokončení | E37: 600 | F37: 450 | G37: 450 | H37: 100
A38: 2219 | B38: 6121 | C38: 221900057 | D38: Parkovací stání 5.května | E38: 80 | F38: 80 | G38: 78.65 | H38: 98.3125
A39: 2219 | B39: 6121 | C39: 221900063 | D39: Přechod pro chodce Rozkoš | E39: 1300 | F39: 0 | G39: 0 | H39: 0
A40: 2219 | B40: 6121 | C40: 221900069 | D40: Zpevněná plocha Rozkoš | E40: 130 | F40: 80 | G40: 80 | H40: 100
A41: 22 | D41: Doprava | E41: 26870 | F41: =SUM(F4:F40) -> 21187 | G41: =SUM(G4:G40) -> 19971.73 | H41: 94.26407703
A42: 2310 | B42: 6121 | C42: 231000028 | D42: Vodovod křižovatka Pražská | E42: 5050 | F42: 4677 | G42: 4677 | H42: 100
A43: 2310 | B43: 6121 | C43: 231000029 | D43: Vodovod Sluníčkova | E43: 130 | F43: 130 | G43: 130 | H43: 100
A44: 2310 | B44: 6121 | C44: 231000035 | D44: Vodovodní řad Plačkov-výkup od Herálce | E44: 95 | F44: 95 | G44: 0 | H44: 0
A45: 2310 | B45: 6121 | C45: 231000036 | D45: Vodovodní řad Krasoňov | E45: 70 | F45: 70 | G45: 0 | H45: 0
A46: 2310 | B46: 6121 | C46: 231000037 | D46: Vodovodní řad Jiřická | E46: 235.1 | F46: 235.1 | G46: 0 | H46: 0
A47: 2310 | B47: 6121 | C47: 231000038 | D47: Vodovodní řad U Kaštanu | E47: 208.4 | F47: 208.4 | G47: 0 | H47: 0
A48: 2310 | B48: 6121 | C48: 231000039 | D48: Vodovodní řad Hněvkovice | E48: 39.8 | F48: 39.8 | G48: 39.8 | H48: 100
A49: 2321 | B49: 6121 | C49: 232100020 | D49: Kanalizace Sluníčkova-PD | E49: 132 | F49: 132 | G49: 132 | H49: 100
A50: 2321 | B50: 6121 | C50: 232100023 | D50: Areační systém na ČOV | E50: 450 | F50: 450 | G50: 450 | H50: 100
A51: 2321 | B51: 6121 | C51: 232100028 | D51: Kanalizace kruh.křiž.Pražská | E51: 22600 | F51: 38131 | G51: 38103.9 | H51: 99.92892922
A52: 2321 | B52: 6121 | C52: 232100029 | D52: Kanalizace Krasoňov | E52: 70 | F52: 0 | G52: 0 | H52: 0
A53: 2321 | B53: 6121 | C53: 232100030 | D53: Dešťová kanalizace E.Dítě | E53: 590 | F53: 363 | G53: 294.29 | H53: 81.07162534
A54: 2321 | B54: 6121 | C54: 232100031 | D54: Kanalizace Hněvkovice | E54: 78.8 | F54: 78.8 | G54: 78.8 | H54: 100
A55: 2321 | B55: 6121 | C55: 232100032 | D55: Kanalizace Jihlavská | E55: 89.5 | F55: 146.5 | G55: 146.5 | H55: 100
A56: 23 | D56: Vodní hospodářství | E56: 29838.6 | F56: =SUM(F42:F55) -> 44756.6 | G56: =SUM(G42:G55) -> 44052.29 | H56: 98.426355
A57: 3111 | B57: 6351 | D57: Investiční příspěvek MŠ | E57: 609 | F57: 609 | G57: 597.1 | H57: 98.04597701
A58: 3113 | B58: 6351 | C58: 321 | D58: Investiční příspěvek ZŠ Hálkova | E58: 10840 | F58: 10909.8 | G58: 10820.9 | H58: 99.1851363
A59: 3113 | B59: 6351 | C59: 322 | D59: Investiční příspěvek ZŠ Hradská | E59: 850 | F59: 250 | G59: 218.06 | H59: 87.224
A60: 31 | D60: Vzdělávání | E60: 12299 | F60: =SUM(F57:F59) -> 11768.8 | G60: =SUM(G57:G59) -> 11636.06 | H60: 98.87210251
A61: 3231 | B61: 6351 | D61: Investiční příspěvek ZUŠ | E61: 0 | F61: 296 | G61: 296 | H61: 100
A62: 3231 | B62: 6356 | C62: 3231001 | D62: Dotace z Fondu Vysočiny ZUŠ | F62: 29.9 | G62: 29.9 | H62: 100
A63: 3233 | B63: 6351 | D63: Investiční příspěvek SVČ | E63: 4000 | F63: 6926 | G63: 6736.4 | H63: 97.26248917
A64: 32 | D64: Vzdělávání | E64: 4000 | F64: =SUM(F61:F63) -> 7251.9 | G64: 7062.3 | H64: 97.38551276
A65: 3319 | B65: 6121 | C65: 331900010 | D65: Polyfunkční komunitní centrum | E65: 20000 | F65: 7000 | G65: 6593.9 | H65: 94.19857143
A66: 3319 | B66: 6351 | D66: Investiční příspěvek MěKIS | E66: 1300 | F66: 1114.3 | G66: 1114.3 | H66: 100
A67: 3319 | B67: 6356 | D67: Jiné inv.transfery MěKIS- Antropol.expozice | E67: 0 | F67: 200 | G67: 200 | H67: 100
A68: 3322 | B68: 6121 | C68: 332200009 | D68: Budova čp. 250 Dolní nám. | E68: 450 | F68: 450 | G68: 0 | H68: 0
A69: 3322 | B69: 6121 | C69: 332200022 | D69: Hrad Orlík - zastropení sklepení | E69: 600 | F69: 750 | G69: 469.2 | H69: =G69/F69*100 -> 62.56
A70: 3322 | B70: 6121 | C70: 332200024 | D70: Budova čp. 253 Dolní náměstí | E70: 150 | F70: 50 | G70: 41.8 | H70: 83.6
A71: 3326 | B71: 6121 | C71: 332600019 | D71: Pomník ak.mal.M.Zacha | E71: 100 | F71: 100 | G71: 100 | H71: 100
A72: 3326 | B72: 6122 | C72: 332600008 | D72: Nasvícení kostela Sv. Mikuláše | E72: 50 | F72: 50 | G72: 50 | H72: 100
A73: 33 | D73: Kultura, církve | E73: 22650 | F73: =SUM(F65:F72) -> 9714.3 | G73: =SUM(G65:G72) -> 8569.2 | H73: 88.21222322
A74: 3412 | B74: 6121 | C74: 341200007 | D74: Rekonstr.hřiště Plačkov | E74: 0 | F74: 21 | G74: 20.5 | H74: 97.61904762
A75: 3412 | B75: 6121 | C75: 341200070 | D75: Hřiště Rozkoš | E75: 600 | F75: 851.1 | G75: 809.9 | H75: 95.15920573
A76: 3412 | B76: 6121 | C76: 341200071 | D76: Hřiště Hněvkovice | E76: 220 | F76: 199 | G76: 196.3 | H76: 98.64321608
A77: 3412 | B77: 6121 | C77: 341200072 | D77: Hřiště Plačkov | E77: 0 | F77: 53.1 | G77: 53.1 | H77: 100
A78: 3412 | B78: 6121 | C78: 341200073 | D78: WC fotbal.hřiště | E78: 0 | F78: 400 | G78: 400 | H78: 100
A79: 3412 | B79: 6121 | C79: 341200078 | D79: Koupaliště-ruské kuželky | E79: 25 | F79: 17.9 | G79: 17.89 | H79: 99.94413408
A80: 3412 | B80: 6121 | C80: 341200079 | D80: DiscGolf park | E80: 400 | F80: 322.6 | G80: 322.62 | H80: 100.0061996
A81: 3412 | B81: 6121 | C81: 341200080 | D81: Hala Hradská-rekonstrukce | E81: 80 | F81: 145 | G81: 136.5 | H81: 94.13793103
A82: 3412 | B82: 6121 | C82: 341200082 | D82: Sportoviště Okružní-projekt | E82: 130 | F82: 115 | G82: 115 | H82: 100
A83: 3412 | B83: 6121 | C83: 341200083 | D83: Zlatá podkova-sociál.zařízení | E83: 2000 | F83: 1975.5 | G83: 1975.45 | H83: 99.997469
A84: 3412 | B84: 6121 | C84: 341200084 | D84: Zimní stadion-projekt | E84: 360 | F84: 349.8 | G84: 349.84 | H84: 100.0114351
A85: 3412 | B85: 6121 | C85: 341200085 | D85: Městská hřiště - herní prvky | E85: 0 | F85: 216.9 | G85: 216.6 | H85: 99.86168741
A86: 3412 | B86: 6121 | C86: 341200086 | D86: Sportovní areál Okružní | F86: 75.5 | G86: 75.5 | H86: 100
A87: 34 | D87: Sport a zájmová činnost | E87: 3815 | F87: =SUM(F74:F86) -> 4742.4 | G87: =SUM(G74:G86) -> 4689.2 | H87: 98.87820513
A88: 3612 | B88: 6121 | C88: 19 | D88: Fügnerova-SINPRO | E88: 400 | F88: 400 | G88: 145.9 | H88: 36.475
A89: 3612 | B89: 6121 | C89: 73 | D89: Masarykova - SINPRO | E89: 400 | F89: 400 | G89: 18.3 | H89: 4.575
A90: 3612 | B90: 6121 | C90: 74 | D90: Masarykova - SINPRO | E90: 735 | F90: 735 | G90: 0 | H90: 0
A91: 3612 | B91: 6121 | C91: 245 | D91: Jana Zábrany-SINPRO | E91: 0 | F91: 280 | G91: 279.14 | H91: 99.69285714
A92: 3612 | B92: 6121 | C92: 926 | D92: Hálkova-SINPRO | E92: 400 | F92: 311 | G92: 272.32 | H92: 87.56270096
A93: 3612 | B93: 6121 | C93: 927 | D93: Hálkova-SINPRO | E93: 400 | F93: 0 | G93: 0 | H93: 0
A94: 3612 | B94: 6121 | C94: 1027 | D94: Hálkova-SINPRO | E94: 0 | F94: 264 | G94: 263.54 | H94: 99.82575758
A95: 3612 | B95: 6121 | C95: 1039 | D95: Hálkova-SINPRO | E95: 400 | F95: 0 | G95: 0 | H95: 0
A96: 3612 | B96: 6121 | C96: 1313 | D96: Na Rybníčku-SINPRO | E96: 700 | F96: 700 | G96: 457.5 | H96: 65.35714286
A97: 3612 | B97: 6121 | C97: 1326 | D97: Na Rybníčku-SINPRO | E97: 400 | F97: 400 | G97: 0 | H97: 0
A98: 3612 | B98: 6121 | C98: 1353 | D98: Komenského - SINPRO | E98: 0 | F98: 345 | G98: 344.6 | H98: 99.88405797
A99: 3612 | B99: 6121 | C99: 361200004 | D99: Regenerace sídliště Lužická | E99: 500 | F99: 260 | G99: 188 | H99: 72.30769231
A100: 3612 | B100: 6121 | C100: 361200006 | D100: Bytový dům s MŠ (projekt) | E100: 700 | F100: 700 | G100: 0 | H100: 0
A101: 3613 | B101: 6121 | C101: 361300073 | D101: Nebyt.-čp.803 LTRN - oprava střechy | E101: 2250 | F101: 2130 | G101: 2121.92 | H101: 99.62065728
A102: 3613 | B102: 6121 | C102: 361300107 | D102: Nebyt.-čp.422-úpravy vrat | E102: 1000 | F102: 0 | G102: 0 | H102: 0
A103: 3613 | B103: 6121 | C103: 361300129 | D103: Nebyt.-kolna nářadí Plačkov | E103: 150 | F103: 150 | G103: 150 | H103: 100
A104: 3613 | B104: 6121 | C104: 361300130 | D104: Nebyt.-budova OV Lhotka | E104: 200 | F104: 200 | G104: 199.65 | H104: 99.825
A105: 3613 | B105: 6121 | C105: 361300131 | D105: Nebyt.-budova SDH Světlice | E105: 85 | F105: 85 | G105: 83.85 | H105: 98.64705882
A106: 3613 | B106: 6122 | C106: 361300132 | D106: Nebyt.-Hodiny na budově MěKIS | E106: 55 | F106: 55 | G106: 45.97 | H106: 83.58181818
A107: 3613 | B107: 6121 | C107: 361300133 | D107: Nebyt.polikl.čp.885-vysoušeče | E107: 0 | F107: 40.1 | G107: 40.1 | H107: 100
A108: 3631 | B108: 6121 | C108: 363100012 | D108: VO - projekt k novým VO | E108: 100 | F108: 100 | G108: 30.3 | H108: 30.3
A109: 3631 | B109: 6121 | C109: 363100044 | D109: VO Kletečná | E109: 50 | F109: 50 | G109: 0 | H109: 0
A110: 3631 | B110: 6121 | C110: 363100051 | D110: VO Vilémov | E110: 15 | F110: 15 | G110: 0 | H110: 0
A111: 3631 | B111: 6121 | C111: 363100052 | D111: VO Horní náměstí | E111: 40 | F111: 40 | G111: 0 | H111: 0
A112: 3632 | B112: 6121 | C112: 363200016 | D112: Hřbitov,UH - rekonstrukce cest | E112: 1000 | F112: 1000 | G112: 973.3 | H112: 97.33
A113: 3632 | B113: 6121 | C113: 363200018 | D113: Hřbitov - rekonstrukce márnice | E113: 350 | F113: 350 | G113: 212.3 | H113: 60.65714286
A114: 3639 | B114: 6130 | C114: 363900020 | D114: Komunální služby-výkup nemovitostí | E114: 1815 | F114: 3295 | G114: 117.2 | H114: 3.556904401
A115: 36 | D115: Bydlení a územní rozvoj | E115: 12145 | F115: =SUM(F88:F114) -> 12305.1 | G115: =SUM(G88:G114) -> 5943.89 | H115: 48.30428034
A116: 3722 | B116: 6121 | C116: 372200011 | D116: Sběr a svoz PDO-Kontejnerová stání-město | E116: 400 | F116: 400 | G116: 399.85 | H116: 99.9625
A117: 3722 | B117: 6121 | C117: 372200013 | D117: Sběr a svoz PDO-Kontejnerová stání Plačkov | E117: 100 | F117: 0 | G117: 0 | H117: 0
A118: 3745 | B118: 6121 | C118: 374500049 | D118: Veřejná zeleň-vodní plocha u Dvoráku | E118: 150 | F118: 20 | G118: 15 | H118: 75
A119: 3745 | B119: 6121 | C119: 374500062 | D119: Péče o vzhled obce-park Zichpil | E119: 70 | F119: 0 | G119: 0 | H119: 0
A120: 3745 | B120: 6121 | C120: 374500064 | D120: Péče o vzhled obce-pěšina Lnářská | E120: 160 | F120: 0 | G120: 0 | H120: 0
A121: 3745 | B121: 6121 | C121: 374500071 | D121: Péče o vzhled obce-park Stromovka-st.úpravy | E121: 3000 | F121: 5300 | G121: 5203.54 | H121: 98.18
A122: 3745 | B122: 6121 | C122: 374500074 | D122: Pěšina Čejovská-Panský Vrch | E122: 150 | F122: 150 | G122: 149.3 | H122: 99.53333333
A123: 3745 | B123: 6121 | C123: 374500077 | D123: Cestní síť lesopark Orlík | E123: 500 | F123: 80 | G123: 60.7 | H123: 75.875
A124: 3745 | B124: 6121 | C124: 374500078 | D124: Zeď u biokontejneru Rozkoš | E124: 200 | F124: 200 | G124: 167.6 | H124: 83.8
A125: 3745 | B125: 6121 | C125: 374500080 | D125: Protihlukový val Stodůlky | E125: 150 | F125: 20 | G125: 0 | H125: 0
A126: 3745 | B126: 6121 | C126: 374500083 | D126: Péče o vzhled obce-protihl.stěna u D1 | E126: 50 | F126: 50 | G126: 0 | H126: 0
A127: 37 | D127: Ochrana životního prostředí | E127: 4930 | F127: =SUM(F116:F126) -> 6220 | G127: =SUM(G116:G126) -> 5995.99 | H127: 96.39855305
A128: 5311 | B128: 6122 | C128: ---------- | D128: Kamerový systém - nové kamery | E128: 600 | F128: 1029.4 | G128: 669.2 | H128: 65.00874296
A129: 53 | D129: Bezpečnost a veřejný pořádek | E129: 600 | F129: =SUM(F128) -> 1029.4 | G129: 669.2 | H129: 65.00874296
A130: 5512 | B130: 6123 | C130: ---------- | D130: SDH Humpolec nákup vozidla | E130: 100 | F130: 100 | G130: 0 | H130: 0
A131: 55 | D131: Požární ochrana a IZS | E131: 100 | F131: =SUM(F130) -> 100 | G131: 0 | H131: 0
A132: 6171 | B132: 6111 | C132: ---------- | D132: Správa MěÚ-programové vybavení | E132: 100 | F132: 313.19 | G132: 0 | H132: 0
A133: 6171 | B133: 6121 | C133: ---------- | D133: Správa MěÚ metropolitní síť | E133: 600 | F133: 950 | G133: 876.8 | H133: =G133/F133*100 -> 92.29473684
A134: 6171 | B134: 6121 | D134: Správa MěÚ-rekonstrukce budovy č.p.300 | E134: 350 | F134: 0 | G134: 0 | H134: 0
A135: 6171 | B135: 6125 | C135: 617100002 | D135: Správa MěÚ-výpočetní technika | E135: 360 | F135: 390 | G135: 389.3 | H135: 99.82051282
A136: 61 | D136: Státní moc, státní správa | E136: 1410 | F136: =SUM(F132:F135) -> 1653.19 | G136: =SUM(G132:G135) -> 1266.1 | H136: 76.58526848
D137: CELKEM KAPITÁLOVÉ VÝDAJE | E137: =SUM(E136,E131,E127,E115,E87,E73,E64,E60,E56,E41,E129) -> 118657.6 | F137: =SUM(F136,F131,F127,F115,F87,F73,F64,F60,F56,F41,F129) -> 120728.69 | G137: =SUM(G136,G131,G127,G115,G87,G73,G64,G60,G56,G41,G129) -> 109855.96 | H137: 90.99407937

Sheet Výdaje celkem dle oddílů
A1: v tis.Kč | B1: Běžné výdaje | F1: Kapitálové výdaje | J1: Celkem výdaje
A2: Oddíl | B2: Schválený rozpočet 2019 | C2: Upravený rozpočet 2019 | D2: Skutečnost k 31.12.2019 | E2: % SK/UR 2019 | F2: Schválený rozpočet 2019 | G2: Upravený rozpočet 2019 | H2: Skutečnost k 31.12.2019 | I2: % SK/UR 2019 | J2: Schválený rozpočet 2019 | K2: Upravený rozpočet 2019 | L2: Skutečnost k 31.12.2019 | M2: % SK/UR 2019
A3: 10 - Zemědělství a lesnictví | B3: ='Rozpis BV 2019'!E11 -> 846 | C3: ='Rozpis BV 2019'!F11 -> 863.8 | D3: ='Rozpis BV 2019'!G11 -> 768.11 | E3: x | I3: x | J3: =B3+F3 -> 846 | K3: =C3+G3 -> 863.8 | L3: =D3+H3 -> 768.11 | M3: =L3/K3*100 -> 88.92220421
A4: 21 - Průmysl,staveb.,obchod,služby | B4: ='Rozpis BV 2019'!E15 -> 150 | C4: ='Rozpis BV 2019'!F15 -> 157 | D4: ='Rozpis BV 2019'!G15 -> 156.2 | E4: x | I4: x | J4: 150 | K4: 157 | L4: 156.2 | M4: 99.49044586
A5: 22 - Doprava | B5: ='Rozpis BV 2019'!E39 -> 13385 | C5: ='Rozpis BV 2019'!F39 -> 14908 | D5: ='Rozpis BV 2019'!G39 -> 13418.95 | E5: =D5/C5*100 -> 90.01173866 | F5: ='Rozpis KV 2019'!E41 -> 26870 | G5: ='Rozpis KV 2019'!F41 -> 21187 | H5: ='Rozpis KV 2019'!G41 -> 19971.73 | I5: =H5/G5*100 -> 94.26407703 | J5: 40255 | K5: 36095 | L5: 33390.68 | M5: 92.50777116
A6: 23 - Vodní hospodářství | B6: ='Rozpis BV 2019'!E69 -> 49103.2 | C6: ='Rozpis BV 2019'!F69 -> 48684.5 | D6: ='Rozpis BV 2019'!G69 -> 47197.79 | E6: 96.94623545 | F6: ='Rozpis KV 2019'!E56 -> 29838.6 | G6: ='Rozpis KV 2019'!F56 -> 44756.6 | H6: ='Rozpis KV 2019'!G56 -> 44052.29 | I6: 98.426355 | J6: 78941.8 | K6: 93441.1 | L6: 91250.08 | M6: 97.65518599
A7: 31 - Vzdělání | B7: ='Rozpis BV 2019'!E80 -> 16580 | C7: ='Rozpis BV 2019'!F80 -> 18377.6 | D7: ='Rozpis BV 2019'!G80 -> 17882.97 | E7: 97.30851689 | F7: ='Rozpis KV 2019'!E60 -> 12299 | G7: ='Rozpis KV 2019'!F60 -> 11768.8 | H7: ='Rozpis KV 2019'!G60 -> 11636.06 | I7: 98.87210251 | J7: 28879 | K7: 30146.4 | L7: 29519.03 | M7: 97.91892233
A8: 32 -Vzdělání | B8: ='Rozpis BV 2019'!E84 -> 2390 | C8: ='Rozpis BV 2019'!F84 -> 3556.2 | D8: ='Rozpis BV 2019'!G84 -> 3556.17 | E8: 99.9991564 | F8: ='Rozpis KV 2019'!E64 -> 4000 | G8: ='Rozpis KV 2019'!F64 -> 7251.9 | H8: ='Rozpis KV 2019'!G64 -> 7062.3 | I8: 97.38551276 | J8: 6390 | K8: 10808.1 | L8: 10618.47 | M8: 98.24548255
A9: 33-Kultura, církve | B9: ='Rozpis BV 2019'!E130 -> 11852.6 | C9: ='Rozpis BV 2019'!F130 -> 12029.31 | D9: ='Rozpis BV 2019'!G130 -> 11283.05 | E9: 93.79631916 | F9: ='Rozpis KV 2019'!E73 -> 22650 | G9: ='Rozpis KV 2019'!F73 -> 9714.3 | H9: ='Rozpis KV 2019'!G73 -> 8569.2 | I9: 88.21222322 | J9: 34502.6 | K9: 21743.61 | L9: 19852.25 | M9: 91.30153641
A10: 34-Tělovýchova a zájmová činnost | B10: ='Rozpis BV 2019'!E192 -> 13050.36 | C10: ='Rozpis BV 2019'!F192 -> 12309.96 | D10: ='Rozpis BV 2019'!G192 -> 11526.76 | E10: 93.63767226 | F10: ='Rozpis KV 2019'!E87 -> 3815 | G10: ='Rozpis KV 2019'!F87 -> 4742.4 | H10: ='Rozpis KV 2019'!G87 -> 4689.2 | I10: 98.87820513 | J10: 16865.36 | K10: 17052.36 | L10: 16215.96 | M10: 95.09510707
A11: 36-Bydlení, územní rozvoj, komunální služby | B11: ='Rozpis BV 2019'!E293 -> 32328.95 | C11: ='Rozpis BV 2019'!F293 -> 32279.31 | D11: ='Rozpis BV 2019'!G293 -> 25007.27 | E11: =D11/C11*100 -> 77.47151349 | F11: ='Rozpis KV 2019'!E115 -> 12145 | G11: ='Rozpis KV 2019'!F115 -> 12305.1 | H11: ='Rozpis KV 2019'!G115 -> 5943.89 | I11: =H11/G11*100 -> 48.30428034 | J11: 44473.95 | K11: 44584.41 | L11: 30951.16 | M11: =L11/K11*100 -> 69.42148612
A12: 37-Ochrana životního prostředí | B12: ='Rozpis BV 2019'!E340 -> 26455.5 | C12: ='Rozpis BV 2019'!F340 -> 26414.15 | D12: ='Rozpis BV 2019'!G340 -> 23997.93 | E12: =D12/C12*100 -> 90.85255441 | F12: ='Rozpis KV 2019'!E127 -> 4930 | G12: ='Rozpis KV 2019'!F127 -> 6220 | H12: ='Rozpis KV 2019'!G127 -> 5995.99 | I12: =H12/G12*100 -> 96.39855305 | J12: 31385.5 | K12: 32634.15 | L12: 29993.92 | M12: 91.90961003
A13: 39 - Ost.čin.souvis.se služ. pro obyv. | B13: ='Rozpis BV 2019'!E349 -> 260 | C13: ='Rozpis BV 2019'!F349 -> 260 | D13: ='Rozpis BV 2019'!G349 -> 251.77 | E13: x | I13: x | J13: 260 | K13: 260 | L13: 251.77 | M13: 96.83461538
A14: 43 - Sociální péče | B14: ='Rozpis BV 2019'!E365 -> 2979.5 | C14: ='Rozpis BV 2019'!F365 -> 2979.5 | D14: ='Rozpis BV 2019'!G365 -> 2964.5 | E14: x | I14: x | J14: 2979.5 | K14: 2979.5 | L14: 2964.5 | M14: 99.49655983
A15: 52-Civilní připravenost na krizové stavy | B15: ='Rozpis BV 2019'!E374 -> 270 | C15: ='Rozpis BV 2019'!F374 -> 270 | D15: ='Rozpis BV 2019'!G374 -> 63.63 | E15: x | I15: x | J15: 270 | K15: 270 | L15: 63.63 | M15: 23.56666667
A16: 53-Bezpečnost a veřejný pořádek | B16: ='Rozpis BV 2019'!E380 -> 550 | C16: ='Rozpis BV 2019'!F380 -> 470.7 | D16: ='Rozpis BV 2019'!G380 -> 280.3 | E16: =D16/C16*100 -> 59.54960697 | F16: ='Rozpis KV 2019'!E129 -> 600 | G16: ='Rozpis KV 2019'!F129 -> 1029.4 | H16: ='Rozpis KV 2019'!G129 -> 669.2 | I16: =H16/G16*100 -> 65.00874296 | J16: 1150 | K16: 1500.1 | L16: 949.5 | M16: 63.29578028
A17: 55 - Požární ochrana a IZS | B17: ='Rozpis BV 2019'!E410 -> 1894.71 | C17: ='Rozpis BV 2019'!F410 -> 2048.93 | D17: ='Rozpis BV 2019'!G410 -> 1570.31 | E17: 0 | F17: ='Rozpis KV 2019'!E131 -> 100 | G17: ='Rozpis KV 2019'!F131 -> 100 | H17: ='Rozpis KV 2019'!G131 -> 0 | I17: =H17/G17*100 -> 0 | J17: 1994.71 | K17: 2148.93 | L17: 1570.31 | M17: 73.0740415
A18: 61-Územní samospráva | B18: ='Rozpis BV 2019'!E470 -> 55331 | C18: ='Rozpis BV 2019'!F470 -> 54198.04 | D18: ='Rozpis BV 2019'!G470 -> 50169.5 | E18: =D18/C18*100 -> 92.56700058 | F18: ='Rozpis KV 2019'!E136 -> 1410 | G18: ='Rozpis KV 2019'!F136 -> 1653.19 | H18: ='Rozpis KV 2019'!G136 -> 1266.1 | I18: =H18/G18*100 -> 76.58526848 | J18: 56741 | K18: 55851.23 | L18: 51435.6 | M18: 92.09394314
A19: 63 - Finanční operace | B19: ='Rozpis BV 2019'!E477 -> 19243.33 | C19: ='Rozpis BV 2019'!F477 -> 19235 | D19: ='Rozpis BV 2019'!G477 -> 8751.86 | E19: x | I19: x | J19: 19243.33 | K19: 19235 | L19: 8751.86 | M19: 45.49966207
A20: 64 - ostatní činnosti | B20: ='Rozpis BV 2019'!E480 -> 0 | C20: ='Rozpis BV 2019'!F480 -> 268.4 | D20: ='Rozpis BV 2019'!G480 -> 266.43 | E20: x | I20: x | J20: 0 | K20: 268.4 | L20: 266.43 | M20: x
A21: CELKEM | B21: =SUM(B3:B20) -> 246670.15 | C21: =SUM(C3:C20) -> 249310.4 | D21: =SUM(D3:D20) -> 219113.5 | E21: =D21/C21*100 -> 87.88782979 | F21: =SUM(F3:F20) -> 118657.6 | G21: =SUM(G3:G20) -> 120728.69 | H21: 109855.96 | I21: =H21/G21*100 -> 90.99407937 | J21: 365327.75 | K21: 370039.09 | L21: 328969.46 | M21: =L21/K21*100 -> 88.90127257
